Cogmind - Beta 15 @@@ ROGUE MODE // 2025.05.05 @ 21:45:56 Player: Infomantis Result: Defending 0bPrime! Performance ------------- Evolutions (7) 3500 Regions Visited (23) 4600 Robots Destroyed (221) 1105 Value Destroyed (10723) 10723 Prototype IDs (70) 1400 Alien Tech Used (1) 200 Bonus (29180) 29180 TOTAL SCORE: 50708 Bonus ------- High Alert Combat Kills 2386 Follower Combat Kills 4988 Entered Garrisons 200 Registered with UFD 300 Met Optimus in HQ 500 Met Imprinter 300 Met Warlord at Base 500 MAIN.C Attacked Warlord 500 Warlord Defense Kills 154 Built Enhanced Grunts 300 Met R17 at Cetus 500 Met R17 at Research 2000 Met Optimus at Protoforge 1000 Completed Drillbomb Mission10000 Optimus Survived to 0b1 3000 Win 3000 Friendly Fire -448 Cogmind --------- Core Integrity 776/1300 Matter 300/300 Energy 200/200 System Corruption 9% Temperature Hot (202) Movement Flying (31) Location 0bPrime Parts ------- > --- POWER (2) -------- Micro Antimatter Reactor Micro Antimatter Reactor > --- PROPULSION (7) --- Field Propulsion Array Improved Diametric Drive Impulse Thruster Array Impulse Thruster Array > --- UTILITY (10) ----- Advanced Heat Sink (fused) Medium Storage Unit Experimental Targeting Computer Experimental Melee Analysis Suite Experimental Core Analyzer Nanoactuators (fused) Experimental Reaction Control System Centrium Light Armor Plating Centrium Light Armor Plating Graphene Brace > --- WEAPON (2) ------- Nanosword Enhanced Force Lance > --- INVENTORY (10) --- UFD Drillbomb Peak State ------------ > --- POWER ------------ Micro Fission Core Micro Antimatter Reactor > --- PROPULSION ------- Flightbrick Experimental Surge Thruster Experimental Surge Thruster Experimental Surge Thruster > --- UTILITY ---------- Medium Storage Unit Advanced Energy Well Experimental Optical Array Advanced Signal Interpreter Experimental Core Analyzer Experimental Core Analyzer Experimental Armor Integrity Analyzer Improved Transmission Jammer Concept Core Shell Centrium Medium Armor Plating Graphene Brace Improved Hacking Suite > --- WEAPON ----------- Nanosword > --- INVENTORY -------- Field Propulsion Array Improved Diametric Drive Cooled Impulse Thruster Advanced Cooling System Nova Cannon Core Cannon Concept XC Strikerail Micro-nuke Launcher [Rating: 190] Favorites ----------- Power Light Fission Core Engine Light Angular Momentum Engine Power Core Light Fission Core Reactor Light Antimatter Reactor Propulsion Advanced VSS Leg Treads Light Treads Leg Advanced VSS Leg Wheel Compact Wheel Hover Unit Antigrav System Flight Unit Improved Diametric Drive Utility Large Storage Unit Device Amulet of Y3-NDR Storage Large Storage Unit Processor Advanced Targeting Computer Hackware Advanced Hacking Suite Protection Improved Medium Armor Plating Weapon Light Assault Rifle Energy Gun EM Pulse Gun Energy Cannon Subdweller Beam Cannon Ballistic Gun Light Assault Rifle Ballistic Cannon Heavy Mass Driver Launcher Rocket Launcher Special Weapon Multitool Impact Weapon Makeshift Hammer Slashing Weapon Phasing Sabre Piercing Weapon Enhanced Force Lance Special Melee Weapon Datajack Build | -11 -10 -10 -10 -9 -6 -6 -6 -6 -6 -6 -5 -5 -5 -5 -5 -4 -4 -4 -4 -4 -3 -3 -3 ------- Run | Yrd Mat Min Sub Scr Fac Gar Fac Low Low Zio Pro Fac Upp Upp War Pro Fac Ext Cet Arc Res Qua Frg Slots Evolved 14 | . . . . . 8 . . . . . . 2 . . . . 2 . . . 2 . . Power 1 | . . . . . 1 . . . . . . . . . . . . . . . . . . Propulsion 5 | . . . . . 3 . . . . . . . . . . . 1 . . . 1 . . Utility 8 | . . . . . 4 . . . . . . 2 . . . . 1 . . . 1 . . Weapon . | . . . . . . . . . . . . . . . . . . . . . . . . Parts Attached 275 | 7 . 4 11 11 51 18 9 2 3 4 1 7 4 12 13 2 13 12 4 9 18 4 56 Power 36 | 1 . 1 1 1 6 2 1 . . . 1 1 1 2 1 . 2 5 . 1 3 . 6 Engine 12 | 1 . . 1 1 2 1 1 . . . . . . . . . . 3 . 1 1 . . Core 14 | . . 1 . . 4 1 . . . . 1 1 1 1 1 . 1 1 . . 1 . . Reactor 10 | . . . . . . . . . . . . . . 1 . . 1 1 . . 1 . 6 Propulsion 60 | 2 . 1 3 3 16 5 5 . . . . . . 5 6 . 2 1 . 1 2 1 7 Treads 11 | 2 . 1 1 . 1 . . . . . . . . 2 3 . . . . . . . 1 Leg 20 | . . . . 2 8 5 4 . . . . . . . 1 . . . . . . . . Wheel 8 | . . . 2 1 5 . . . . . . . . . . . . . . . . . . Hover 5 | . . . . . 1 . . . . . . . . 3 1 . . . . . . . . Flight 16 | . . . . . 1 . 1 . . . . . . . 1 . 2 1 . 1 2 1 6 Utility 119 | 2 . 1 2 5 17 8 3 1 3 2 . 3 3 4 3 1 7 3 2 5 10 1 33 Device 50 | 1 . . 2 1 9 4 2 . 1 2 . 2 3 . 2 . 3 1 1 2 5 . 9 Storage 9 | 1 . 1 . 2 . . . . . . . . . . 1 . 1 2 . . 1 . . Processor 24 | . . . . . 5 1 . 1 . . . . . . . 1 1 . . . 3 . 12 Hackware 11 | . . . . . . . . . . . . 1 . 2 . . 2 . . 3 1 1 1 Protection 25 | . . . . 2 3 3 1 . 2 . . . . 2 . . . . 1 . . . 11 Artifact . | . . . . . . . . . . . . . . . . . . . . . . . . Weapon 60 | 2 . 1 5 2 12 3 . 1 . 2 . 3 . 1 3 1 2 3 2 2 3 2 10 Energy Gun 10 | . . 1 1 . 1 . . . . 1 . . . 1 1 . 1 . . 1 . . 2 Energy Cannon 6 | . . . . . 1 . . . . . . 1 . . 1 . . . . . . 2 1 Ballistic Gun 17 | 2 . . 1 . 5 1 . . . . . . . . . . 1 1 2 1 . . 3 Ballistic Cannon 10 | . . . . . 3 1 . . . 1 . 2 . . . . . 1 . . . . 2 Launcher 6 | . . . 1 . 1 1 . 1 . . . . . . 1 . . . . . 1 . . Special Weapon 3 | . . . 1 1 1 . . . . . . . . . . . . . . . . . . Impact Weapon 2 | . . . 1 . . . . . . . . . . . . 1 . . . . . . . Slashing Weapon 3 | . . . . . . . . . . . . . . . . . . 1 . . 2 . . Piercing Weapon 2 | . . . . . . . . . . . . . . . . . . . . . . . 2 Special Melee Weapon 1 | . . . . 1 . . . . . . . . . . . . . . . . . . . Unidentified Prototypes 43 | . . . 1 . 1 . 1 . 1 2 . 1 . . 6 1 1 . 2 . 5 1 20 Corrupted Parts 8 | . . . . 2 . . 1 . . . . . . . . 1 . 1 2 1 . . . System Corruption 45 | . . . . 11 . . 4 . . . . . . . . 3 . 7 11 9 . . . Parts Lost 40 | . . . 2 . 12 4 . . . . . 4 . 5 . . 5 . 2 . 1 2 3 Power 6 | . . . . . 3 1 . . . . . . . . . . 1 . 1 . . . . Propulsion 15 | . . . 2 . 4 1 . . . . . . . 4 . . 2 . . . . . 2 Utility 17 | . . . . . 5 2 . . . . . 4 . 1 . . 1 . 1 . 1 1 1 Weapon 2 | . . . . . . . . . . . . . . . . . 1 . . . . 1 . Highest Loss Streak 4 | . . . 1 . 3 1 . . . . . 3 . 4 . . 4 . 1 . 1 1 2 To Critical Strikes 1 | . . . . . . . . . . . . . . 1 . . . . . . . . . Average Backups 10 | 1 6 8 11 12 13 12 11 11 11 11 12 11 11 11 11 12 10 8 9 9 9 8 2 Power . | . . . . 1 1 1 . . . . . . . . . . . . . . . . . Propulsion 1 | . 1 1 1 1 2 2 2 2 2 2 2 2 2 2 2 3 3 2 2 2 2 3 . Utility 4 | . 3 3 3 4 5 5 5 5 6 5 6 5 3 4 3 4 2 3 3 3 3 2 . Weapon 3 | . 2 4 5 3 3 3 2 2 2 2 3 3 4 4 4 4 3 2 3 3 2 2 . Tool/Special . | . . . . . . . . . . . . . . . . . . . . . . . . Unused Backups 37 | . . 1 4 2 12 . 5 . 2 2 1 . 1 . . . . . 1 . . 1 5 Power 3 | . . . . . 2 . 1 . . . . . . . . . . . . . . . . Propulsion 3 | . . . . . 1 . 1 . . . . . . . . . . . . . . . 1 Utility 14 | . . . 1 . 5 . 3 . 1 1 1 . 1 . . . . . . . . . 1 Weapon 15 | . . 1 3 2 2 . . . 1 1 . . . . . . . . 1 . . 1 3 Tool/Special 2 | . . . . . 2 . . . . . . . . . . . . . . . . . . Average Slot Usage (%) 86 | . 100 100 99 75 69 96 94 93 93 80 93 92 91 90 91 100 92 79 78 77 82 81 86 Engine 5 | . 14 4 8 13 3 2 4 6 6 6 6 4 . . . . . 3 2 . 1 . . Core 4 | . . 9 5 . 5 9 8 6 6 6 6 6 11 5 5 11 5 3 4 4 3 3 3 Treads 7 | . 28 28 19 4 1 6 1 . . . . . . 8 12 23 18 . . . . . . Leg 9 | . . . . 7 15 16 31 33 33 33 33 29 29 2 1 5 4 . . . . . . Wheel 4 | . . . 8 16 1 9 . . . . . . . . . . . . . . . . . Hover 1 | . . . . . . . . . . . . . . 15 14 . . . . . . . . Flight 2 | . . . . . . . . . . . . . . . . . 3 12 13 12 11 12 20 Device 12 | . 14 14 14 . 10 9 13 13 13 7 13 19 26 13 14 23 14 20 20 21 18 20 18 Storage 7 | . 14 14 14 10 5 6 6 6 6 6 6 5 5 5 5 11 9 4 4 4 4 4 4 Processor 6 | . . . . . 8 7 13 13 13 13 13 11 11 11 10 5 10 13 13 13 12 8 13 Hackware 2 | . . . . . . . . . . . . 3 . 9 5 5 9 9 9 10 13 14 3 Protection 3 | . . . . 6 2 14 6 6 5 1 6 2 . 4 3 . . . . . 3 4 6 Energy Gun 1 | . . . 6 . . . . . . . . . . . 6 10 8 . . . . . . Ballistic Gun 5 | . 28 27 14 4 4 1 . . . . . . . . . . . 3 4 4 4 . . Ballistic Cannon 1 | . . . . . 3 9 4 5 5 1 6 4 5 3 . . . . . . . . . Impact Weapon 1 | . . . 5 4 . . 1 . . 2 . . . . . . . . . . . . . Special Melee Weapon 1 | . . . . 9 . . . . . . . . . . . . . . . . . . . Peak Build Rating 190 | 7 8 10 24 24 85 82 92 92 91 91 92 106 103 103 103 98 131 144 148 151 173 184 190 Average Rating 71 | 5 7 9 18 17 71 63 87 89 89 73 91 101 99 86 85 96 110 140 141 141 167 165 169 On Entrance 84 | . 7 8 10 24 20 62 82 92 87 90 91 92 86 103 77 97 98 131 144 143 149 173 160 Naked Turns 60 | . . . . 60 . . . . . . . . . . . . . . . . . . . Heaviest Build 238 | 13 13 28 31 210 238 68 68 66 66 66 65 69 64 67 66 56 61 38 38 39 51 40 47 Greatest Support 114 | 40 40 40 40 32 90 87 92 92 92 92 82 82 74 74 114 114 114 38 38 39 46 46 54 Greatest Overweight (x) 18 | . . . 1 6 18 6 . . . . . . . 5 1 . . . . . 1 1 1 Average Overweight (x) . | . . . . 2 . 2 . . . . . . . . . . . . . . . . . Largest Inventory Capacity 35 | 8 8 15 15 35 35 15 15 15 15 15 15 15 15 15 15 15 15 10 10 10 10 10 10 Average Capacity 14 | 7 8 10 15 20 16 15 15 15 15 15 15 15 15 15 15 15 14 10 10 10 10 10 10 Most Carried 35 | 6 8 15 15 35 35 15 15 15 15 15 15 15 15 15 15 15 15 10 10 10 10 10 10 Average Carried 13 | 1 6 10 14 15 16 15 14 14 14 14 14 14 14 14 14 15 14 9 9 9 9 9 7 Final Capacity 35 | 8 8 15 15 35 15 15 15 15 15 15 15 15 15 15 15 15 15 10 10 10 10 10 10 Final Carried 35 | 6 8 15 15 35 15 15 15 15 15 15 15 15 15 15 15 15 15 10 10 10 10 10 10 Class Distribution -------------------- 36% | Scavenger-Mutant 28% | Mutant 8% | Hauler-Mutant 7% | Derelict-Mutant 5% | Hacker-Sprinter 5% | Scavenger-Sprinter Dominant Class ---------------- Mutant | -10/Materials Mutant | -10/Mines Mutant | -10/Subcaves Hauler-Mutant | -9/Scraptown Mutant | -6/Factory Scavenger-Mutant | -6/Garrison Scavenger-Mutant | -6/Factory Scavenger-Mutant | -6/Lower Caves Scavenger-Mutant | -6/Lower Caves Scavenger-Mutant | -6/Zion Scavenger-Mutant | -5/Proximity Caves Scavenger-Mutant | -5/Factory Scavenger-Mutant | -5/Upper Caves Scavenger-Mutant | -5/Upper Caves Scavenger-Mutant | -5/Warlord Scavenger-Mutant | -4/Proximity Caves Scavenger-Mutant | -4/Factory Hacker-Sprinter | -4/Extension Hacker-Scout | -4/Cetus Commander-Sprinter | -4/Archives Hacker-Scout | -3/Research Wizard-Ninja | -3/Quarantine Scavenger-Sprinter | -3/Protoforge Resources | -11 -10 -10 -10 -9 -6 -6 -6 -6 -6 -6 -5 -5 -5 -5 -5 -4 -4 -4 -4 -4 -3 -3 -3 ----------- Run | Yrd Mat Min Sub Scr Fac Gar Fac Low Low Zio Pro Fac Upp Upp War Pro Fac Ext Cet Arc Res Qua Frg Matter Collected 8832 | 280 20 91 245 160 1535 928 426 83 196 93 64 559 243 464 170 30 57 969 228 196 620 178 997 Remotely . | . . . . . . . . . . . . . . . . . . . . . . . . Salvage Created 11463 | 89 44 249 144 . 1453 765 520 . 19 . 257 834 241 345 81 22 841 1123 402 386 976 281 2391 Parts 564 | 9 7 13 11 . 61 30 22 . 3 . 12 40 11 7 2 . 35 50 21 29 32 3 166 Haulers Intercepted 6 | . . . . . 1 . . . . . . . . . . . . . . . 3 1 1 Recyclers Shooed 11 | . . . . . 4 . 1 . . . . 1 . 1 . . 3 1 . . . . . Parts Field Recycled . | . . . . . . . . . . . . . . . . . . . . . . . . Retrieved Matter . | . . . . . . . . . . . . . . . . . . . . . . . . Parts Self-Destructed 63 | . . . 16 . . . . 6 2 . 12 . 7 8 . 12 . . . . . . . Prevented 16 | . . . . . . . . . . . . . 4 4 . 8 . . . . . . . Kills | -11 -10 -10 -10 -9 -6 -6 -6 -6 -6 -6 -5 -5 -5 -5 -5 -4 -4 -4 -4 -4 -3 -3 -3 ------- Run | Yrd Mat Min Sub Scr Fac Gar Fac Low Low Zio Pro Fac Upp Upp War Pro Fac Ext Cet Arc Res Qua Frg Combat Hostiles Destroyed 161 | . 3 4 3 . 25 19 8 . 3 . 4 17 3 3 2 1 12 6 4 1 7 . 36 Melee 34 | . . . . . . . . . . . . . . . . . . 1 . . 3 . 30 Guns 39 | . 3 4 3 . 5 1 . . . . . . . . 2 1 7 4 . 1 4 . 4 Cannons 54 | . . . . . 11 16 3 . . . 4 12 3 3 . . . . . . . . 2 AOE 22 | . . . . . 7 2 2 . 3 . . 5 . . . . 3 . . . . . . Classes Destroyed 23 | 2 1 1 3 . 9 1 . . . . . 1 . . . . . . . . . . 5 Worker 12 | . . . . . 2 . 3 . . . . 2 . . . . 2 1 . . 2 . . Builder 4 | . . . . . 1 . 1 . . . . . . . . . 1 1 . . . . . Tunneler 3 | 2 . . . . 1 . . . . . . . . . . . . . . . . . . Hauler 6 | . . . . . 1 . . . . . . . . . . . . . . . 3 1 1 Recycler 15 | 1 . . . . 4 . 1 . . . . . . . . . 3 4 . . 1 1 . Mechanic 2 | . . . . . 1 . . . . . . . . . . . . 1 . . . . . Operator 13 | . . . . . 1 . . . . . . . . . . . . 2 . 9 1 . . Turret 1 | . . . 1 . . . . . . . . . . . . . . . . . . . . Watcher 4 | . . . . . . . . . . . . 1 . . . . . . 2 . . 1 . Swarmer 36 | . 3 . 3 . 4 5 2 . 3 . . . 1 . 1 . 5 . . . . . 9 Saboteur 1 | . . . . . . . . . . . . . . . . . . . . . . . 1 Grunt 56 | . . 4 . . 11 7 5 . . . 3 10 . . 1 . 5 3 . . 3 . 4 Brawler 2 | . . . . . . 1 . . . . . . . . . . 1 . . . . . . Duelist 2 | . . . . . 1 . . . . . . 1 . . . . . . . . . . . Protector 4 | . . . . . . . . . . . . . . . . . . . . . . . 4 Sentry 12 | . . . . . 3 3 . . . . 1 1 1 . . . . 1 . 1 1 . . Hunter 15 | . . . . . 3 2 . . . . . 1 . 3 . . . 1 . . 2 . 3 Programmer 19 | . . . . . 3 1 1 . . . . 4 1 . . 1 1 1 . . 1 . 5 Cetus Guard 4 | . . . . . . . . . . . . . . . . . . . 4 . . . . Hotshot 2 | . . . . . . . . . . . . . . . . . . . . . . . 2 Decapitator 2 | . . . . . . . . . . . . . . . . . . . . . . . 2 Striker 1 | . . . . . . . . . . . . . . . . . . . . . . . 1 Executioner 5 | . . . . . . . . . . . . . . . . . . . . . . . 5 Artisan 1 | . . . 1 . . . . . . . . . . . . . . . . . . . . Cobbler 1 | . . . 1 . . . . . . . . . . . . . . . . . . . . Packrat 4 | . . . . . . . . . . . . . . 4 . . . . . . . . . Wizard 1 | . . . . . . . . . . . . . 1 . . . . . . . . . . Best Kill Streak 10 | 3 2 2 3 . 6 5 5 . 3 . 3 10 1 2 2 1 7 3 3 9 3 1 4 Combat Bots Only 8 | . 2 2 3 . 6 5 3 . 3 . 3 8 1 2 2 1 5 2 2 1 2 . 4 Max Kills in Single Turn 3 | 1 1 1 1 . 3 2 3 . 2 . 1 2 1 1 1 1 2 1 1 1 1 1 2 Gunslinging . | . . . . . . . . . . . . . . . . . . . . . . . . Exploded 3 | . . . . . 3 2 2 . 2 . . 2 . . . . 1 . . . . . . Melee 1 | . . . . . . . . . . . . . . . . . . 1 . . 1 . 1 Uniques/NPCs Destroyed . | . . . . . . . . . . . . . . . . . . . . . . . . Combat | -11 -10 -10 -10 -9 -6 -6 -6 -6 -6 -6 -5 -5 -5 -5 -5 -4 -4 -4 -4 -4 -3 -3 -3 -------- Run | Yrd Mat Min Sub Scr Fac Gar Fac Low Low Zio Pro Fac Upp Upp War Pro Fac Ext Cet Arc Res Qua Frg Hostile Shots Fired 1276 | . 13 29 50 . 300 140 39 . 4 . . 61 . 40 . 13 93 78 31 . 41 7 337 Missed 558 | . 3 10 20 . 111 42 16 . 2 . . 23 . 11 . 4 32 45 14 . 14 4 207 Hits 718 | . 10 19 30 . 189 98 23 . 2 . . 38 . 29 . 9 61 33 17 . 27 3 130 Melee 3 | . . . . . . . . . . . . 1 . . . . . . . . . . 2 Projectile 715 | . 10 19 30 . 189 98 23 . 2 . . 37 . 29 . 9 61 33 17 . 27 3 128 AOE 1 | . . . 1 . . . . . . . . . . . . . . . . . . . . Critical Strikes 30 | . . . . . 8 1 . . . . . 3 . 2 . . 4 1 4 . 1 . 6 Actively Blocked 11 | . . . . . . . . . . . . . . . . . . . 4 . 1 . 6 Part Disruptions 3 | . . . . . 3 . . . . . . . . . . . . . . . . . . Damage Taken 13129 | . 78 270 436 153 2733 1267 326 . 31 . . 868 23 510 . 168 1175 704 379 26 732 159 3091 Core 1449 | . 13 68 51 41 283 126 . . 13 . . 137 . 37 . 21 106 61 31 . . 56 405 Absorbed by Shields 162 | . . . . . . . . . . . . . . . . . . 54 108 . . . . Redirected to Shielding 162 | . . . . 10 . 110 . . . . . . . . . . . . . . . . 42 Ignored by Resistances 61 | . . . . . . . . . . . . 57 . . . 4 . . . . . . . Regen/Repaired (Parts) 286 | . . . . . . . . . . . . 160 . . 14 . . 28 . . 62 22 . Core Remaining (%) 66 | 100 . . . 30 . . . . . . 50 . . . . 80 . . . 82 . . 59 Volleys Fired 502 | 5 11 23 26 . 99 60 19 1 2 . 4 45 7 25 8 4 32 70 9 5 26 4 17 Largest 2 | 2 2 2 2 . 2 2 1 1 1 . 1 2 1 1 2 2 2 1 1 2 2 1 1 Hottest 300 | 40 40 60 100 . 110 80 65 43 43 . 65 112 65 80 125 125 125 55 46 70 70 113 300 Shots Fired 696 | 10 22 46 44 . 161 99 19 3 3 . 4 48 8 26 15 7 36 73 9 9 33 4 17 Gun 371 | 10 22 46 36 . 81 8 . . . . . . . 3 15 7 31 63 1 9 28 . 11 Cannon 260 | . . . . . 64 88 14 2 1 . 4 42 8 17 . . . 10 . . . 4 6 Launcher 52 | . . . 4 . 13 3 5 1 2 . . 6 . . . . 5 . 8 . 5 . . Special 13 | . . . 4 . 3 . . . . . . . . 6 . . . . . . . . . Kinetic 538 | 10 22 39 18 . 145 96 15 2 1 . 4 39 8 17 . . . 73 1 9 28 . 11 Thermal 59 | . . . 4 . 16 . . . . . . 3 . 9 7 3 7 . . . . 4 6 Explosive 6 | . . . 4 . . . . . 2 . . . . . . . . . . . . . . Electromagnetic 57 | . . 7 18 . . 3 4 1 . . . 6 . . . . 5 . 8 . 5 . . Entropic 36 | . . . . . . . . . . . . . . . 8 4 24 . . . . . . Robot Hit Streak 21 | 8 2 7 6 . 12 21 6 . . . 4 14 10 7 11 15 14 15 1 4 6 . 12 Robot Miss Streak 11 | 1 4 1 5 . 4 11 2 . 1 . . 1 1 2 2 1 2 2 3 3 3 . . Penetration Max 3 | . . . . . 1 . . . . . . . . 1 2 . 3 1 . . 1 . 2 Secondary Targets 1 | . . . . . . . . . . . . . . . 1 . . . . . . . . Max Gunslinging Chain 1 | . . . . . . . . . . . . . . . 1 . . . . . . . . Shots Hit Robots 578 | 8 9 32 20 2 108 61 16 . . . 4 37 7 22 13 5 22 64 2 18 30 9 89 Core Hits 350 | 5 4 11 15 . 58 38 15 . 3 . 4 28 4 11 9 2 30 28 9 10 17 3 46 Critical Kills 18 | . . . . . 2 . 1 . . . . . . . . . . 7 . 1 4 . 3 Critical Parts Destroyed 25 | . . . . . 3 . . . . . . . . . . . 1 14 . . 4 . 3 Critical Strikes 75 | . . . . . 7 5 1 . . . 2 3 2 1 . . 1 22 . 1 8 2 20 Meltdown 1 | . . . . . 1 . . . . . . . . . . . . . . . . . . Destroy 38 | . . . . . 3 . . . . . . . . . . . . 20 . 1 8 . 6 Blast 14 | . . . . . 1 5 . . . . 2 3 2 1 . . . . . . . . . Smash 5 | . . . . . 2 . 1 . . . . . . . . . . 2 . . . . . Sever 10 | . . . . . . . . . . . . . . . . . . . . . . 2 8 Impale 6 | . . . . . . . . . . . . . . . . . . . . . . . 6 Detonate 1 | . . . . . . . . . . . . . . . . . 1 . . . . . . Melee Attacks 259 | . . . 18 2 14 . 7 . . 1 . . . . . 1 2 21 . 17 21 17 138 Impact 58 | . . . 18 . 14 . 7 . . 1 . . . . . 1 2 15 . . . . . Slashing 174 | . . . . . . . . . . . . . . . . . . 6 . 17 21 17 113 Piercing 25 | . . . . . . . . . . . . . . . . . . . . . . . 25 Sneak Attacks 34 | . . . . 2 2 . 2 . . . . . . . . . . 5 . 7 9 3 4 Combat Hostiles 2 | . . . . . . . . . . . . . . . . . . . . . . . 2 Follow-up Attacks 11 | . . . . . . . . . . . . . . . . . . . . . . . 11 Damage Inflicted 29053 | 67 75 285 375 . 4640 2290 1493 . 310 . 273 2874 557 928 516 130 1740 1311 862 1364 1683 654 6626 Guns 5269 | 67 75 285 245 . 1146 128 . . . . . . . 69 516 130 1042 501 . 132 559 . 374 Cannons 8092 | . . . . . 1464 1619 659 . . . 273 2108 557 812 . . . . . . . . 600 Explosions 5482 | . . . 130 . 1547 543 555 . 310 . . 759 . . . . 664 . 862 . 112 . . Melee 9988 | . . . . . 376 . 252 . . . . . . . . . . 810 . 1232 1012 654 5652 Ramming 159 | . . . . . 91 . 27 . . . . 7 . . . . 34 . . . . . . Kinetic 11843 | 67 75 216 66 . 3627 1747 834 . . . 273 2003 557 812 . . . 501 . 132 559 . 374 Thermal 2309 | . . . . . 546 121 11 . . . . 158 . 116 174 58 399 . 126 . . . 600 Explosive 440 | . . . 130 . . . . . 310 . . . . . . . . . . . . . . Electromagnetic 3049 | . . 69 179 . . 422 369 . . . . 706 . . . . 456 . 736 . 112 . . Impact 975 | . . . . . 376 . 252 . . . . . . . . . . 347 . . . . . Slashing 7711 | . . . . . . . . . . . . . . . . . . 463 . 1232 1012 654 4350 Piercing 1302 | . . . . . . . . . . . . . . . . . . . . . . . 1302 Entropic 1265 | . . . . . . . . . . . . . . . 342 72 851 . . . . . . Highest Corruption 20 | . . . . 11 . . 4 12 12 12 . 1 1 1 1 4 1 9 20 20 5 2 9 Average Corruption 5 | . . . . 10 . . 2 11 12 12 . 1 1 1 1 1 1 4 14 13 2 2 7 Corruption Purged 18 | . . . . . . . . . . . . . . . . . . . . 13 5 . . Corruption Blocked . | . . . . . . . . . . . . . . . . . . . . . . . . Effects 194 | . . . . 4 . . 4 18 19 3 . 2 7 14 . 1 1 29 10 19 9 6 48 Message Errors 44 | . . . . 1 . . 1 5 4 3 . . 1 2 . 1 . 4 1 7 . 1 13 Matter Fused 43 | . . . . . . . 1 4 6 . . 1 2 3 . . 1 8 4 1 3 1 8 Heat Flow Errors 22 | . . . . 2 . . 1 1 2 . . . 1 . . . . 5 . 1 3 1 5 Energy Discharges 25 | . . . . . . . . 1 3 . . . 1 2 . . . 4 . 1 2 1 10 Parts Fused 4 | . . . . . . . . . . . . . . 1 . . . . . 1 . . 2 Data Loss (minor) 29 | . . . . 1 . . 1 4 1 . . 1 . 1 . . . 5 2 2 . 2 9 Data Loss (major) 12 | . . . . . . . . 1 1 . . . . 3 . . . . 3 2 1 . 1 Misfires 9 | . . . . . . . . 2 1 . . . 1 1 . . . 3 . 1 . . . Alerts 4 | . . . . . . . . . 1 . . . 1 1 . . . . . 1 . . . Weapon Failures 2 | . . . . . . . . . . . . . . . . . . . . 2 . . . Overload Shots . | . . . . . . . . . . . . . . . . . . . . . . . . Overflow Damage 1951 | . . . . . 284 . 75 . . . . 119 33 120 . . . 204 11 365 134 208 398 Projectiles 357 | . . . . . 29 . 67 . . . . 108 33 120 . . . . . . . . . Explosions 130 | . . . . . 108 . . . . . . 11 . . . . . . 11 . . . . Melee 1464 | . . . . . 147 . 8 . . . . . . . . . . 204 . 365 134 208 398 Knockbacks 48 | . . . . . 20 6 5 . . . . 8 1 5 . . 1 2 . . . . . Impact 7 | . . . . . 4 . . . . . . . . . . . 1 2 . . . . . Kinetic 40 | . . . . . 16 5 5 . . . . 8 1 5 . . . . . . . . . Secondary 1 | . . . . . . 1 . . . . . . . . . . . . . . . . . Self-Inflicted Damage 243 | . . . 20 . 62 . 30 . . . . 54 . . . . 52 . 9 . 16 . . Shots 9 | . . . 1 . 1 . 2 . . . . 1 . . . . 2 . 1 . 1 . . Rammed 2 | . . . . . . . . . . . . . . . . . 2 . . . . . . Targets Rammed 14 | . . . . . 8 . 2 . . . . 1 . . . . 3 . . . . . . Kicked 11 | . . . . . 8 . 2 . . . . 1 . . . . . . . . . . . Crushed 1 | . . . . . . . . . . . . . . . . . 1 . . . . . . Highest Temperature 258 | . . 79 . 214 54 31 217 97 258 . 59 67 111 . . . 37 226 . 66 227 227 229 Average Temperature 49 | . . 22 . 103 15 12 60 29 93 . 28 21 68 . . . 19 63 . 51 69 124 104 Received Heat Transfer 2025 | . . 150 75 . 615 357 93 . . . . 228 . . . 45 118 97 4 . 57 9 177 Siege Activations . | . . . . . . . . . . . . . . . . . . . . . . . . Martial Activations . | . . . . . . . . . . . . . . . . . . . . . . . . Shielding Activations . | . . . . . . . . . . . . . . . . . . . . . . . . Robots Disrupted 1 | . . . . . . . . . . . . . . . . . . . 1 . . . . Combat Hostiles 1 | . . . . . . . . . . . . . . . . . . . 1 . . . . Robots Corrupted 15 | . . . 1 . 2 1 3 . . . . . . . . . 3 1 4 . . . . Combat Hostiles 11 | . . . . . 1 . 3 . . . . . . . . . 2 1 4 . . . . Parts Fried 22 | . . . 1 . 2 2 2 . . . . 6 . . . . 3 2 1 . 3 . . Impact Corruptions 6 | . . . . . 3 . 1 . . . . . . . . . . 2 . . . . . Robots Melted 1 | . . . . . 1 . . . . . . . . . . . . . . . . . . Combat Hostiles 1 | . . . . . 1 . . . . . . . . . . . . . . . . . . Parts Melted 1 | . . . . . 1 . . . . . . . . . . . . . . . . . . Heat Transferred 2370 | . . . . . 559 100 50 . . . . 211 . 300 275 100 625 . 150 . . . . Parts Sabotaged . | . . . . . . . . . . . . . . . . . . . . . . . . Parts Stolen . | . . . . . . . . . . . . . . . . . . . . . . . . Parts Stripped . | . . . . . . . . . . . . . . . . . . . . . . . . Power Chain Reactions 10 | . . . . . . 1 2 . . . . 3 . . . . 3 . 1 . . . . Alert | -11 -10 -10 -10 -9 -6 -6 -6 -6 -6 -6 -5 -5 -5 -5 -5 -4 -4 -4 -4 -4 -3 -3 -3 ------- Run | Yrd Mat Min Sub Scr Fac Gar Fac Low Low Zio Pro Fac Upp Upp War Pro Fac Ext Cet Arc Res Qua Frg Maximum Alert Level 4 | . . . . . 2 4 2 . . . . 3 . . . . 2 3 2 2 4 2 4 Low Security (%) 31 | 100 100 100 . . 64 . . . . . . 27 . . . . 16 . . 1 14 . 16 Level 1 18 | . . . . . 15 2 . . . . . 2 . . . . 57 63 12 86 4 45 3 Level 2 29 | . . . . . 19 43 100 . . . . 2 . . . . 25 34 87 12 8 54 49 Level 3 16 | . . . . . . 51 . . . . . 67 . . . . . 2 . . 59 . 14 Level 4 3 | . . . . . . 2 . . . . . . . . . . . . . . 13 . 16 Level 5 . | . . . . . . . . . . . . . . . . . . . . . . . . High Security . | . . . . . . . . . . . . . . . . . . . . . . . . Max Security . | . . . . . . . . . . . . . . . . . . . . . . . . Peak Influence 1524 | 10 69 50 . . 546 1230 692 . . . . 976 . . . . 583 706 532 419 1257 504 1524 Initial 645 | . . 13 . . . 381 645 . . . . . . . . . 121 281 328 192 95 468 156 Average 417 | 1 9 5 . . 157 722 648 . . . . 637 . . . . 311 409 455 341 749 385 643 Influence Increases 12792 | 15 144 105 340 . 1130 889 361 . 70 . 97 1759 204 244 539 373 958 955 374 277 1675 295 1988 Destroy 0b10 Robot/C 5620 | . 60 80 120 . 560 520 180 . 60 . 80 760 120 160 360 240 400 440 160 80 520 80 640 Destroy 0b10 Robot/NC 455 | 15 . 5 . . 55 5 30 . . . . 45 5 . 10 . 45 80 10 45 65 15 25 Destroy Leader 886 | . 10 20 10 . 132 50 32 . 10 . 10 138 20 20 . 20 74 66 . . 130 24 120 Allied During Kill 2024 | . . . 15 . 17 48 13 . . . 7 212 59 49 154 83 109 217 170 125 672 74 . Successful Hack 408 | . 29 . . . 41 14 44 . . . . 24 . . . . 18 64 . . 92 16 66 Disable Machine 480 | . . . . . 135 45 30 . . . . 75 . . . . 30 45 . 15 30 45 30 Anti-Garrison Action 450 | . . . . . . 150 . . . . . 150 . . . . . . . . . . 150 Destroy Structure 774 | . . . . . 70 42 32 . . . . 160 . . . . 162 28 34 12 76 26 132 Partial Spotted 120 | . . . . . . . . . . . . . . . . . 30 . . . 15 . 75 Lose Combat Pursuer 1575 | . 45 . 195 . 120 15 . . . . . 195 . 15 15 30 90 15 . . 75 15 750 Influence Decreases 11268 | 15 109 140 340 . 585 204 935 465 207 54 97 835 685 558 231 617 576 944 478 504 1098 848 743 Entered New Map 3661 | . . 22 . . . 164 585 243 38 54 . . 343 85 129 437 72 294 258 290 160 364 123 Time Decay 5334 | 15 109 118 243 . 409 . 310 222 169 . 97 385 342 343 42 120 334 530 140 214 398 214 580 Lost Part 356 | . . . 10 . 86 40 . . . . . 40 . 50 . . 50 . 20 . 10 20 30 Lost Ally 1167 | . . . 87 . 90 . 40 . . . . 260 . 80 60 60 120 120 60 . 80 100 10 Purge Threat 750 | . . . . . . . . . . . . 150 . . . . . . . . 450 150 . Squads Dispatched 73 | . 2 . . . 11 . 6 . . . . 15 . . . . 10 2 . . 16 2 9 Investigation 39 | . 2 . . . 6 . 4 . . . . 5 . . . . 5 2 . . 10 1 4 Extermination 12 | . . . . . 4 . 2 . . . . 2 . . . . 2 . . . . 1 1 Reinforcement 14 | . . . . . 1 . . . . . . 2 . . . . 3 . . . 6 . 2 Assault 4 | . . . . . . . . . . . . 2 . . . . . . . . . . 2 Garrison 4 | . . . . . . . . . . . . 4 . . . . . . . . . . . Intercept . | . . . . . . . . . . . . . . . . . . . . . . . . Searches Triggered . | . . . . . . . . . . . . . . . . . . . . . . . . Construction Impeded 5 | . . . . . 1 . . . . . . 1 . . . . 1 . . . 2 . . Haulers Reinforced 4 | . . . . . . . . . . . . 1 . . . . . . . . 3 . . Active Scanning Responses . | . . . . . . . . . . . . . . . . . . . . . . . . Cargo Convoy Interrupts 1 | . . . . . . . . . . . . 1 . . . . . . . . . . . Stealth | -11 -10 -10 -10 -9 -6 -6 -6 -6 -6 -6 -5 -5 -5 -5 -5 -4 -4 -4 -4 -4 -3 -3 -3 --------- Run | Yrd Mat Min Sub Scr Fac Gar Fac Low Low Zio Pro Fac Upp Upp War Pro Fac Ext Cet Arc Res Qua Frg Distress Signals 24 | . 1 . . . 1 . . . . . . 3 . . . . . 2 2 . 5 1 9 Communications Jammed 4 | . . . . . . . . . . . . . . . . . . . . . . 4 . Distress Signals 4 | . . . . . . . . . . . . . . . . . . . . . . 4 . Times Spotted 498 | . 6 4 28 . 37 26 14 . 2 . 3 56 5 6 24 13 28 31 9 8 33 8 157 Peak Tracking Total 23 | . 4 2 4 . 5 5 4 . 2 . 3 12 3 5 8 12 8 5 5 1 5 3 23 Tactical Retreats 52 | . 2 . 4 . 3 1 . . . . . 5 . 1 1 2 2 1 . . 2 1 27 Traps | -11 -10 -10 -10 -9 -6 -6 -6 -6 -6 -6 -5 -5 -5 -5 -5 -4 -4 -4 -4 -4 -3 -3 -3 ------- Run | Yrd Mat Min Sub Scr Fac Gar Fac Low Low Zio Pro Fac Upp Upp War Pro Fac Ext Cet Arc Res Qua Frg Traps Triggered 25 | . 2 . 1 1 1 5 2 . . . . 2 . . . . 3 2 . . 4 . 2 Indirectly 4 | . . . . . . . . . . . . . . . . . 1 . . . 3 . . Trap Hack Attempts . | . . . . . . . . . . . . . . . . . . . . . . . . Triggered . | . . . . . . . . . . . . . . . . . . . . . . . . Disarmed 6 | . . . . . . . . . . . . . . . . . . . . . . . 6 Reprogrammed . | . . . . . . . . . . . . . . . . . . . . . . . . Reused . | . . . . . . . . . . . . . . . . . . . . . . . . Traps Extracted . | . . . . . . . . . . . . . . . . . . . . . . . . Installed 1 | . . . . 1 . . . . . . . . . . . . . . . . . . . Triggered . | . . . . . . . . . . . . . . . . . . . . . . . . Most Traps Carried 5 | . . 5 5 1 . . . . . . . . . . . . . . . . . . . Machines | -11 -10 -10 -10 -9 -6 -6 -6 -6 -6 -6 -5 -5 -5 -5 -5 -4 -4 -4 -4 -4 -3 -3 -3 ---------- Run | Yrd Mat Min Sub Scr Fac Gar Fac Low Low Zio Pro Fac Upp Upp War Pro Fac Ext Cet Arc Res Qua Frg Machines Disabled 50 | . . . 5 . 9 3 2 . 1 . . 6 . 1 1 4 5 4 . 1 2 3 3 Max in Single Turn 3 | . . . 2 . 2 1 1 . 1 . . 3 . . 1 . 1 1 . 1 . 1 1 Garrison Access 5 | . . . . . . . . . . . . 2 . . . . . . . . 1 1 1 Machines Repaired 2 | . . . . . . . . . . . . . . . . . . 1 . . 1 . . Machines Dismantled 1 | . . . . . 1 . . . . . . . . . . . . . . . . . . Machines Sabotaged . | . . . . . . . . . . . . . . . . . . . . . . . . Overloaded Fab Kills . | . . . . . . . . . . . . . . . . . . . . . . . . Hacking | -11 -10 -10 -10 -9 -6 -6 -6 -6 -6 -6 -5 -5 -5 -5 -5 -4 -4 -4 -4 -4 -3 -3 -3 --------- Run | Yrd Mat Min Sub Scr Fac Gar Fac Low Low Zio Pro Fac Upp Upp War Pro Fac Ext Cet Arc Res Qua Frg Machines Accessed 115 | . 6 . 2 6 15 3 7 . 2 . . 12 1 . 1 1 7 15 . . 17 7 13 Terminals 61 | . 6 . . . 6 3 2 . . . . 5 . . . 1 4 13 . . 9 4 8 Fabricators 2 | . . . . . 1 . . . . . . . . . . . . . . . 1 . . Repair Stations 7 | . . . . . 1 . 1 . . . . 1 . . . . . 1 . . 1 1 1 Recycling Units 26 | . . . . . 5 . 4 . . . . 5 . . . . 3 1 . . 5 . 3 Scanalyzers 3 | . . . . . 1 . . . . . . . . . . . . . . . . 1 1 Garrison Access 4 | . . . . . 1 . . . . . . 1 . . . . . . . . 1 1 . Total Hacks 315 | . 15 . 4 40 26 5 10 . 4 . . 27 1 . 1 3 14 63 . . 61 16 25 Successful 189 | . 8 . 4 40 14 1 7 . 4 . . 14 1 . 1 3 6 29 . . 30 11 16 Failed 126 | . 7 . . . 12 4 3 . . . . 13 . . . . 8 34 . . 31 5 9 Catastrophic 19 | . 3 . . . 3 1 1 . . . . 2 . . . . . 4 . . 3 1 1 Database Lockouts . | . . . . . . . . . . . . . . . . . . . . . . . . Manual 164 | . 13 . . . 16 . 6 . . . . 15 . . . . 9 37 1 . 45 10 12 Terminals 195 | . 15 . . . 9 5 4 . . . . 14 . . . 3 11 58 . . 46 12 18 Fabricators 5 | . . . . . 3 . . . . . . . . . . . . . . . 2 . . Repair Stations 20 | . . . . . 3 . 2 . . . . 2 . . . . . 4 . . 5 2 2 Recycling Units 34 | . . . . . 9 . 4 . . . . 8 . . . . 3 1 . . 6 . 3 Scanalyzers 4 | . . . . . 1 . . . . . . . . . . . . . . . . 1 2 Garrison Access 7 | . . . . . 1 . . . . . . 3 . . . . . . . . 2 1 . Terminal Hacks 101 | . 2 . 4 40 1 1 2 . 4 . . 4 1 . 1 3 2 14 . . 8 5 9 Record 43 | . 1 . 3 33 . . . . 3 . . . . . . 3 . . . . . . . Part Schematic 2 | . . . . . . . . . . . . . . . . . . 2 . . . . . Robot Analysis 7 | . . . . 6 . . . . . . . . . . . . . 1 . . . . . Prototype ID Bank 2 | . . . . . . . . . . . . . . . . . . 2 . . . . . Open Door 9 | . . . . . . . . . 1 . . . 1 . 1 . 1 5 . . . . . Branch Access Points 2 | . . . . . . . 1 . . . . 1 . . . . . . . . . . . Emergency Access Points 1 | . . . . . . 1 . . . . . . . . . . . . . . . . . Machine Index 2 | . . . . . . . . . . . . . . . . . . 1 . . 1 . . Terminal Index 3 | . 1 . . . . . 1 . . . . . . . . . . . . . . . 1 Recycling Unit Index 1 | . . . . . . . . . . . . . . . . . . . . . . . 1 Garrison Index 1 | . . . . . . . . . . . . . . . . . . . . . . . 1 Alert Level 6 | . . . . . . . . . . . . 1 . . . . . 1 . . 3 1 . Unreport Threat 5 | . . . . . . . . . . . . 1 . . . . . . . . 3 1 . Locate Traps 4 | . . . . . . . . . . . . . . . . . . . . . 1 1 2 Disarm Traps 1 | . . . . . . . . . . . . . . . . . . . . . . . 1 Maintenance Status 2 | . . . . . . . . . . . . 1 . . . . 1 . . . . . . Patrol Status 2 | . . . . . . . . . . . . . . . . . . 1 . . . . 1 Recall Investigation 1 | . . . . . 1 . . . . . . . . . . . . . . . . . . Registered Prototypes 2 | . . . . . . . . . . . . . . . . . . 1 . . . 1 . Zone Layout 3 | . . . . . . . . . . . . . . . . . . . . . . 1 2 Proto ID Catalog 2 | . . . 1 1 . . . . . . . . . . . . . . . . . . . Fabricator Hacks 2 | . . . . . . . . . . . . . . . . . . . . . 2 . . Load Schematic 1 | . . . . . . . . . . . . . . . . . . . . . 1 . . Build 1 | . . . . . . . . . . . . . . . . . . . . . 1 . . Repair Station Hacks 13 | . . . . . 2 . 1 . . . . 2 . . . . . 2 . . 3 2 1 Scan Component 8 | . . . . . 1 . 1 . . . . 1 . . . . . 1 . . 2 1 1 Repair 5 | . . . . . 1 . . . . . . 1 . . . . . 1 . . 1 1 . Recycling Unit Hacks . | . . . . . . . . . . . . . . . . . . . . . . . . Scanalyzer 1 | . . . . . 1 . . . . . . . . . . . . . . . . . . Insert Component 1 | . . . . . 1 . . . . . . . . . . . . . . . . . . Garrison Access Hacks 4 | . . . . . 1 . . . . . . 1 . . . . . . . . 1 1 . Unlock Access 1 | . . . . . 1 . . . . . . . . . . . . . . . . . . Seal Access 3 | . . . . . . . . . . . . 1 . . . . . . . . 1 1 . Unauthorized Hacks 68 | . 6 . . . 9 . 4 . . . . 7 . . . . 4 13 . . 16 3 6 Terminals 41 | . 6 . . . 4 . . . . . . 3 . . . . 1 12 . . 11 2 2 Assimilate 3 | . . . . . 1 . . . . . . . . . . . . 1 . . . . 1 Botnet 13 | . 1 . . . 2 . . . . . . 2 . . . . 1 2 . . 3 1 1 Disrupt 1 | . . . . . . . . . . . . . . . . . . 1 . . . . . Operators 6 | . . . . . 1 . . . . . . 1 . . . . . 1 . . 2 1 . Skim 18 | . 5 . . . . . . . . . . . . . . . . 7 . . 6 . . Fabricators . | . . . . . . . . . . . . . . . . . . . . . . . . Repair Stations 25 | . . . . . 5 . 4 . . . . 4 . . . . 3 1 . . 5 . 3 Recycling Units . | . . . . . . . . . . . . . . . . . . . . . . . . Fedlink 25 | . . . . . 5 . 4 . . . . 4 . . . . 3 1 . . 5 . 3 Scanalyzers 2 | . . . . . . . . . . . . . . . . . . . . . . 1 1 Researchers 2 | . . . . . . . . . . . . . . . . . . . . . . 1 1 Garrison Access . | . . . . . . . . . . . . . . . . . . . . . . . . Data Cores Recovered 3 | . . . . . 1 . . . . . . . . . . . . 1 . . 1 . . Used 1 | . . . . . . . . . . . . . . . . . . . . . 1 . . Hacking Detections 61 | . 6 . . . 8 2 1 . . . . 8 . . . 1 2 8 . . 11 4 10 Full Trace Events 7 | . . . . . . 1 . . . . . 1 . . . . . 1 . . 3 1 . Feedback Events 2 | . . . . . . . . . . . . 1 . . . . . . . . . 1 . Corruption 1 | . . . . . . . . . . . . 1 . . . . . . . . . . . Hackware Fried 1 | . . . . . . . . . . . . . . . . . . . . . . 1 . Feedback Blocked . | . . . . . . . . . . . . . . . . . . . . . . . . Robot Schematics Acquired 4 | . . . . . . . . . . 4 . . . . . . . . . . . . . Robots Built . | . . . . . . . . . . . . . . . . . . . . . . . . Authchips . | . . . . . . . . . . . . . . . . . . . . . . . . Time . | . . . . . . . . . . . . . . . . . . . . . . . . Total Robot Build Rating . | . . . . . . . . . . . . . . . . . . . . . . . . Part Schematics Acquired 16 | . . . . . . . . . . 14 . . . . . . . 2 . . . . . Parts Built 1 | . . . . . . . . . . . . . . . . . . . . . 1 . . Authchips . | . . . . . . . . . . . . . . . . . . . . . . . . Time 58 | . . . . . . . . . . . . . . . . . . . . . 58 . . Total Part Build Rating 7 | . . . . . . . . . . . . . . . . . . . . . 7 . . Parts Repaired 4 | . . . . . . . . . . . . 1 . . . . . 1 . . 1 1 . Time 208 | . . . . . 44 . . . . . . 56 . . . . . 62 . . 28 18 . Parts Recycled . | . . . . . . . . . . . . . . . . . . . . . . . . Recycled Matter . | . . . . . . . . . . . . . . . . . . . . . . . . Retrieved Matter . | . . . . . . . . . . . . . . . . . . . . . . . . Retrieved Components . | . . . . . . . . . . . . . . . . . . . . . . . . Parts Scanalyzed . | . . . . . . . . . . . . . . . . . . . . . . . . Part Schematics Acquired . | . . . . . . . . . . . . . . . . . . . . . . . . Parts Damaged . | . . . . . . . . . . . . . . . . . . . . . . . . Bothacking | -11 -10 -10 -10 -9 -6 -6 -6 -6 -6 -6 -5 -5 -5 -5 -5 -4 -4 -4 -4 -4 -3 -3 -3 ------------ Run | Yrd Mat Min Sub Scr Fac Gar Fac Low Low Zio Pro Fac Upp Upp War Pro Fac Ext Cet Arc Res Qua Frg Used RIF Installer . | . . . . . . . . . . . . . . . . . . . . . . . . Robots Hacked 2 | . . . . 2 . . . . . . . . . . . . . . . . . . . Non-combat . | . . . . . . . . . . . . . . . . . . . . . . . . Combat 2 | . . . . 2 . . . . . . . . . . . . . . . . . . . Robot Hacks Applied 2 | . . . . 2 . . . . . . . . . . . . . . . . . . . parse_system 2 | . . . . 2 . . . . . . . . . . . . . . . . . . . Relay Couplers Released 6 | . . . . . . . . . . . . 4 . . . . . . . . . . 2 Machine Destruction 6 | . . . . . . . . . . . . 4 . . . . . . . . . . 2 Fabnet Peak Effective % . | . . . . . . . . . . . . . . . . . . . . . . . . Robots Rewired 12 | . . . . . . . . . . . . . . 1 . . . 10 . . . 1 . Allies Hacked . | . . . . . . . . . . . . . . . . . . . . . . . . Hacks Repelled . | . . . . . . . . . . . . . . . . . . . . . . . . Allies | -11 -10 -10 -10 -9 -6 -6 -6 -6 -6 -6 -5 -5 -5 -5 -5 -4 -4 -4 -4 -4 -3 -3 -3 -------- Run | Yrd Mat Min Sub Scr Fac Gar Fac Low Low Zio Pro Fac Upp Upp War Pro Fac Ext Cet Arc Res Qua Frg Total Allies 93 | . . . 18 . 1 2 . . . . 5 10 7 5 . 6 10 16 5 . 6 1 1 Largest Group 12 | . . . 8 8 8 2 2 . . . 4 4 4 5 5 4 4 10 12 12 12 5 1 Highest-Rated Group 891 | . . . 154 154 154 190 185 . . . 324 324 324 353 353 324 324 558 891 891 806 381 26 Highest-Rated Ally 159 | . . . 21 21 26 95 95 . . . 81 81 81 81 81 81 81 159 159 159 96 96 26 Total Orders . | . . . . . . . . . . . . . . . . . . . . . . . . Ally Attacks 715 | . . . 26 . 27 17 13 . . . . 76 23 14 70 58 49 123 39 21 131 28 . Total Damage 27105 | . . . 504 . 354 798 242 . . . . 4307 819 896 4767 2743 2304 3387 879 700 3656 749 . Kills 168 | . . . 3 . 3 7 2 . . . . 28 5 5 26 14 14 23 4 3 27 4 . Allies Corrupted 1 | . . . . . . . . . . . . . . . . . . . . . 1 . . Allies Melted 1 | . . . . . . . . . . . . . . . . 1 . . . . . . . Intel | -11 -10 -10 -10 -9 -6 -6 -6 -6 -6 -6 -5 -5 -5 -5 -5 -4 -4 -4 -4 -4 -3 -3 -3 ------- Run | Yrd Mat Min Sub Scr Fac Gar Fac Low Low Zio Pro Fac Upp Upp War Pro Fac Ext Cet Arc Res Qua Frg Active Infowar (turns) 13375 | 38 842 1020 438 . 938 2 636 468 541 1503 612 1081 24 . 472 495 742 1482 103 102 949 427 460 Optics 115 | . . . . . 1 . . . . . . . . . . . . . . . . . 114 Sensors 9150 | . . . . . 937 . 636 468 541 1503 612 1081 . . . . 81 1482 30 102 949 427 301 Terrain 401 | . . . 401 . . . . . . . . . . . . . . . . . . . . Structural 2375 | . . . . . . 2 . . . . . 38 24 . . . 626 . 75 102 780 427 301 Seismic 1937 | 38 842 1020 37 . . . . . . . . . . . . . . . . . . . . T.N.C. 2 | . . . . . . . . . . . . . . . . . . . . . 2 . . Cloaking 1024 | . . . . . . . . . . . . . . . 472 495 57 . . . . . . Jamming 914 | . . . . . . . . . . . . . . . . . . . . . 31 427 456 Robot Analysis Total 7 | . . . . 6 . . . . . . . . . . . . . 1 . . . . . Derelict Logs Recovered 10 | . . 2 . 3 . . . 1 1 1 1 . 1 . . . . . . . . . . Drone Launches . | . . . . . . . . . . . . . . . . . . . . . . . . Drone Recoveries . | . . . . . . . . . . . . . . . . . . . . . . . . Exploration | -11 -10 -10 -10 -9 -6 -6 -6 -6 -6 -6 -5 -5 -5 -5 -5 -4 -4 -4 -4 -4 -3 -3 -3 ------------- Run | Yrd Mat Min Sub Scr Fac Gar Fac Low Low Zio Pro Fac Upp Upp War Pro Fac Ext Cet Arc Res Qua Frg Turns Passed 30266 | 116 842 1020 3863 5773 2141 1206 686 468 541 1503 612 1149 760 1571 1376 495 745 1482 283 454 949 441 1790 Spaces Moved 24863 | 55 269 586 1921 4100 1399 768 561 442 517 1511 613 908 699 737 724 279 507 1134 241 279 1728 691 4194 Core 354 | 2 . . . 352 . . . . . . . . . . . . . . . . . . . Treads 3367 | 53 269 586 613 . . . . . . . . . . 522 723 279 322 . . . . . . Legs 7845 | . . . . 1061 1251 224 561 442 517 1511 613 908 699 58 . . . . . . . . . Wheels 4686 | . . . 1308 2687 147 544 . . . . . . . . . . . . . . . . . Hover 158 | . . . . . . . . . . . . . . 157 1 . . . . . . . . Flight 8453 | . . . . . 1 . . . . . . . . . . . 185 1134 241 279 1728 691 4194 Fastest Speed 7 | 50 160 160 115 50 90 110 95 95 100 90 95 95 103 103 132 160 30 30 30 30 30 30 7 Average Speed 93 | 156 160 160 129 135 111 120 99 98 100 96 95 102 103 191 179 160 112 30 30 31 31 30 23 Slowest Speed 1505 | 160 160 160 160 200 1505 250 115 100 100 100 95 103 103 370 240 160 160 30 30 37 97 97 84 Overloaded Moves 9 | . . . . . . . . . . . . . . . . . . . . . . . 9 Propulsion Burnouts . | . . . . . . . . . . . . . . . . . . . . . . . . Robots Hopped 31 | . . . . . . . . . . . . . . . . . 1 6 . . 12 1 11 Potential Cave-ins 2 | . . . . . . . . . . . . . . . . . . . . . . . 2 Cave-ins Triggered . | . . . . . . . . . . . . . . . . . . . . . . . . Exploration Rate (%) 60 | 5 40 98 87 94 33 77 19 58 64 89 69 27 81 61 88 58 16 84 59 98 37 54 59 Regions Visited 23 Branch Regions 16 Pre-discovered Areas 14 | . . . 1 7 1 . . . . 2 1 . . . . 1 . 1 . . . . . Known Exits Taken 16 | . 1 . . . 1 . 1 1 1 1 1 1 1 1 . . 1 1 1 1 1 1 . Unknown Exits Taken 6 | 1 . 1 1 1 . . . . . . . . . . 1 1 . . . . . . . Scrap Searched 21 | . . 2 3 4 . . . 2 2 2 2 . 2 2 . . . . . . . . . Spaces Dug 91 | . . . . . 2 . 2 . 14 . . 3 . . . 4 13 8 . . 6 7 32 Terrain Destroyed 420 | . . . 24 . 94 2 27 3 37 . 1 35 2 8 12 8 66 13 14 5 6 8 55 Melee 45 | . . . . . 2 . 2 . . . . . . . . 1 1 . . . 5 5 29 Projectile 141 | . . . . . 10 2 5 3 . . 1 11 2 8 12 7 33 11 1 5 1 3 26 AOE 232 | . . . 24 . 82 . 20 . 37 . . 24 . . . . 32 . 13 . . . . Terrain Rammed . | . . . . . . . . . . . . . . . . . . . . . . . . Walls Destroyed . | . . . . . . . . . . . . . . . . . . . . . . . . Machines Disabled . | . . . . . . . . . . . . . . . . . . . . . . . . Actions | -11 -10 -10 -10 -9 -6 -6 -6 -6 -6 -6 -5 -5 -5 -5 -5 -4 -4 -4 -4 -4 -3 -3 -3 --------- Run | Yrd Mat Min Sub Scr Fac Gar Fac Low Low Zio Pro Fac Upp Upp War Pro Fac Ext Cet Arc Res Qua Frg Total 30965 | 74 663 632 3238 4334 1783 938 666 474 542 1551 637 1054 729 866 793 318 633 2166 443 607 2056 888 4880 Wait 4031 | 2 382 7 1216 107 126 50 18 16 3 15 17 63 10 54 11 32 46 820 165 281 216 149 225 Move 24782 | 54 268 585 1920 4099 1399 765 561 441 516 1510 612 907 698 736 723 278 504 1121 240 278 1706 688 4173 Hop 27 | . . . . . . . . . . . . . . . . . 1 6 . . 9 1 10 Pick Up 205 | 6 2 8 16 60 22 . 12 4 4 3 1 6 2 1 7 . 4 1 5 2 5 2 32 Fast Attach 240 | 7 . . 2 17 36 11 7 . 4 7 . 6 3 15 12 . 9 12 6 11 23 7 45 Attach 84 | . . . 3 . 10 . 8 6 2 2 . 8 2 4 3 . 6 1 1 1 4 . 23 Detach 40 | . . . . . 1 . 2 1 2 2 . 3 1 3 1 . 2 . 2 . 3 1 16 Swap 159 | . . 5 14 1 25 13 5 1 1 1 1 4 3 1 3 3 10 14 5 3 16 9 21 Drop 362 | . . 4 23 23 36 13 24 4 8 10 2 9 3 14 25 . 12 13 10 9 25 8 87 Fire 502 | 5 11 23 26 . 99 60 19 1 2 . 4 45 7 25 8 4 32 70 9 5 26 4 17 Melee 239 | . . . 18 2 14 . 7 . . 1 . . . . . 1 2 21 . 17 21 17 118 Ram . | . . . . . . . . . . . . . . . . . . . . . . . . Kick 10 | . . . . . 8 . 1 . . . . 1 . . . . . . . . . . . Crush 3 | . . . . . . . . . . . . . . . . . 3 . . . . . . Escape Stasis 72 | . . . . . . 24 . . . . . . . . . . . 36 . . . . 12 Rewire 86 | . . . . 24 . . . . . . . . . 13 . . . 47 . . . 1 1 Trap 1 | . . . . 1 . . . . . . . . . . . . . . . . . . . Miscellaneous 122 | . . . . . 7 2 2 . . . . 2 . . . . 2 4 . . 2 1 100 Route ------- -11/Scrapyard -10/Materials (discovered 4 exits: Mat x3 / *Min) -10/Mines (discovered 3 exits: *Mat / [*Exi] / *Sub) -10/Subcaves (discovered 4 exits: [*Mat x2] / [*Rec] / *Scr) -9/Scraptown (discovered 2 exits: *Fac x2) -6/Factory (discovered 7 exits: *Fac x4 / *Low x2 / Gar) -6/Garrison (discovered 3 exits: *Fac x3) -6/Factory (discovered 2 exits: *Low x2) -6/Lower Caves -6/Lower Caves -6/Zion -5/Proximity Caves -5/Factory (discovered 2 exits: *Upp x2) -5/Upper Caves -5/Upper Caves (discovered 2 exits: *Fac / *War) -5/Warlord -4/Proximity Caves -4/Factory (discovered 4 exits: Res x2 / Upp / *Ext) -4/Extension (discovered 3 exits: *Res x2 / *Cet) -4/Cetus (discovered 2 exits: *Res / *Arc) -4/Archives (discovered 3 exits: *Res / [*Hub x2]) -3/Research (discovered 2 exits: Res / *Qua) -3/Quarantine (discovered 3 exits: *Res / *Sec / *Frg) -3/Protoforge 0bPrime History --------- Turn | Location | Event 6 | -11/Scrapyard | Discovered new exit (range 16) 117 | -11/Scrapyard | Entered Materials 308 | -10/Materials | Build established: Mutant 432 | -10/Materials | Learned 2 Mines zone layouts 534 | -10/Materials | Learned Storage security intel 573 | -10/Materials | Learned 4 Subcaves zone layouts 604 | -10/Materials | Learned Storage terminal intel 624 | -10/Materials | Learned location of 1 exit from Storage 654 | -10/Materials | Identified exit to Materials 654 | -10/Materials | Identified exit to Mines 692 | -10/Materials | Loaded intel: 1 repair station location 959 | -10/Materials | Entered Mines 1068 | -10/Mines | Learned Materials interactive machine intel 1074 | -10/Mines | Learned 2 Materials zone layouts 1205 | -10/Mines | Received a Rocket Launcher from a helpful Derelict 1390 | -10/Mines | Deemed a non-threat by the Exiles lab entrance 1390 | -10/Mines | Discovered new exit (range 5) 1593 | -10/Mines | Found a hidden stash of uninstalled traps 1784 | -10/Mines | Discovered new exit (range 6) 1979 | -10/Mines | Entered Subcaves 1980 | -10/Subcaves | Approached by a straggling Scientist 2006 | -10/Subcaves | Visited triangular shrine 2017 | -10/Subcaves | Found Prototype Device 2017 | -10/Subcaves | Identified V3-11A's Pendant 2022 | -10/Subcaves | Befriended Subdweller 2022 | -10/Subcaves | Befriended Subdweller 2027 | -10/Subcaves | Befriended Subdweller 2124 | -10/Subcaves | Shifting Twisted Machinery released Sub. Monowheel 2310 | -10/Subcaves | Shifting Twisted Machinery released Battle Cannon 2318 | -10/Subcaves | Shifting Twisted Machinery released Spk. Treads 2332 | -10/Subcaves | Befriended Subdweller 2401 | -10/Subcaves | Shifting Twisted Machinery released Sub. Beam Cannon 2482 | -10/Subcaves | Befriended Subdweller 2597 | -10/Subcaves | Befriended Subdweller 2607 | -10/Subcaves | Befriended Subdweller 2607 | -10/Subcaves | Befriended Subdweller 2762 | -10/Subcaves | Scientist uncovered a shortcut to Scraptown 2840 | -10/Subcaves | Lost 4 allies 2906 | -10/Subcaves | A swath of the cavern ceiling suddenly collapsed 3548 | -10/Subcaves | Befriended Subdweller 3548 | -10/Subcaves | Befriended Subdweller 3548 | -10/Subcaves | Core integrity fell below 50% 3797 | -10/Subcaves | Visited 4L-MR0's lab 3817 | -10/Subcaves | Found Flightbrick 3933 | -10/Subcaves | Discovered new exit (range 14) 3963 | -10/Subcaves | Befriended Subdweller 4054 | -10/Subcaves | A swath of the cavern ceiling suddenly collapsed 4103 | -10/Subcaves | Befriended Subdweller 4126 | -10/Subcaves | Discovered new exit (range 9) 4148 | -10/Subcaves | Befriended Subdweller 4148 | -10/Subcaves | Befriended Subdweller 4235 | -10/Subcaves | Shifting Twisted Machinery released Sub. Beam Cannon 4328 | -10/Subcaves | Befriended Subdweller 4611 | -10/Subcaves | Curiously followed by a Cobbler waking with a query about "LVR3C" 4859 | -10/Subcaves | A Subdweller sparked back to life 4859 | -10/Subcaves | A Subdweller sparked back to life 4859 | -10/Subcaves | A Subdweller sparked back to life 4863 | -10/Subcaves | Befriended Subdweller 4863 | -10/Subcaves | Befriended Subdweller 4863 | -10/Subcaves | Befriended Subdweller 4879 | -10/Subcaves | Discovered new exit (range 10) 5028 | -10/Subcaves | Visited Clippyterm 5074 | -10/Subcaves | Learned location of Zion (-6) 5074 | -10/Subcaves | Met a Zionite searching for "candidates" 5508 | -10/Subcaves | Build established: Derelict-Mutant 5842 | -10/Subcaves | Entered Scraptown 5842 | -9/Scraptown | Accompanied by 8 allies 5910 | -9/Scraptown | Delivered V3-11A's Pendant to T0-NE2 in exchange for information 6181 | -9/Scraptown | Visited Cave Peace 6206 | -9/Scraptown | Visited Cyclists 6222 | -9/Scraptown | Visited Red Mages 6270 | -9/Scraptown | Visited Observation Area 6321 | -9/Scraptown | Visited IN-MT5's Study 6511 | -9/Scraptown | Discovered new exit (range 13) 6585 | -9/Scraptown | Scanned Subdweller tech in exchange for log data 6622 | -9/Scraptown | Learned Factory garrison access intel 6623 | -9/Scraptown | Learned Factory terminal intel 6624 | -9/Scraptown | Learned Factory emergency access door positions 6659 | -9/Scraptown | Visited Shadow of the Wyrm 6677 | -9/Scraptown | Visited TADAMA 6693 | -9/Scraptown | Visited UFD Registry 6693 | -9/Scraptown | Registered with UFD as "Deathhead" 6718 | -9/Scraptown | Entered Cyclist Reading Room 6771 | -9/Scraptown | Visited Analyses Database 6837 | -9/Scraptown | Visited Abandonware Association 6852 | -9/Scraptown | Learned abandonware demo "ERRANTS.EXE" 6884 | -9/Scraptown | Visited Chapter 10 6917 | -9/Scraptown | Visited Cartography Club 6942 | -9/Scraptown | Visited Science Testing Area 6961 | -9/Scraptown | Visited Scrapoid Pod Storage 6981 | -9/Scraptown | Visited Science Guys 7021 | -9/Scraptown | Visited LU-1G1's Boring Crew 7068 | -9/Scraptown | Visited Scrapoid Research Area 7832 | -9/Scraptown | Build established: Mutant 8162 | -9/Scraptown | Warned about trapping Scraptown 8432 | -9/Scraptown | System corruption reached 10% 8531 | -9/Scraptown | System corruption cleaned by C-Scrubber 9369 | -9/Scraptown | Build established: Hauler-Mutant 10596 | -9/Scraptown | Learned location of Recycling (-9) 10596 | -9/Scraptown | Learned location of Upper Caves (-4) 10596 | -9/Scraptown | Learned location of Cetus (-4) 10596 | -9/Scraptown | Learned location of Testing (-2) 10596 | -9/Scraptown | Learned 8 Materials zone layouts 10596 | -9/Scraptown | Learned 8 Factory zone layouts 10596 | -9/Scraptown | Learned 16 Factory zone layouts 10596 | -9/Scraptown | Learned 20 Factory zone layouts 10596 | -9/Scraptown | Learned 8 Lower Caves zone layouts 10596 | -9/Scraptown | Learned 12 Upper Caves zone layouts 10596 | -9/Scraptown | Learned 12 Proximity Caves zone layouts 10596 | -9/Scraptown | Learned 24 Proximity Caves zone layouts 10596 | -9/Scraptown | Learned Research emergency access door positions 10596 | -9/Scraptown | Learned location of 2 exits from Factory 10596 | -9/Scraptown | Learned location of 1 exit from Lower Caves 10608 | -9/Scraptown | Found Deep Structural Scanner 10852 | -9/Scraptown | Discovered new exit (range 3) 11503 | -9/Scraptown | Met Optimus 11503 | -9/Scraptown | Accepted into 0bPrime 11615 | -9/Scraptown | Entered Factory 11615 | -6/Factory | Accompanied by 8 allies 11615 | -6/Factory | Evolved 8 slots: Power x1, Propulsion x3, Utility x4 11616 | -6/Factory | Identified exit to Lower Caves 11617 | -6/Factory | Identified exit to Factory 11620 | -6/Factory | Loaded intel: 26 terminal locations 11621 | -6/Factory | Loaded intel: 4 garrison access locations 11715 | -6/Factory | Lost 6 allies 11724 | -6/Factory | Found Arachnoskeleton 11726 | -6/Factory | Attached Arachnoskeleton, gained temporary slots: Propulsion x3 12003 | -6/Factory | Build established: Scavenger-Mutant 12401 | -6/Factory | Loaded intel: 8 recycling unit locations 12489 | -6/Factory | Lost 3 parts (1p2n) 12524 | -6/Factory | Discovered exit to Factory (range 10) 12730 | -6/Factory | Build established: Mutant 12799 | -6/Factory | Learned location of Protoforge (-3) 13756 | -6/Factory | Identified exit to Garrison 13756 | -6/Factory | Entered Garrison 14041 | -6/Garrison | Triggered checkpoint 14107 | -6/Garrison | Discovered new exit (range 12) 14128 | -6/Garrison | Attempted to access garrison exit controls, blocked by remote lockdown 14150 | -6/Garrison | Build established: Scavenger-Mutant 14232 | -6/Garrison | Triggered checkpoint 14464 | -6/Garrison | Triggered checkpoint 14545 | -6/Garrison | Found embedded Infiltrators 14549 | -6/Garrison | Discovered new exit (range 13) 14602 | -6/Garrison | Triggered checkpoint 14783 | -6/Garrison | Attempted to access garrison exit controls, blocked by remote lockdown 14826 | -6/Garrison | Triggered checkpoint 14925 | -6/Garrison | Discovered new exit (range 12) 14962 | -6/Garrison | Entered Factory 14962 | -6/Factory | Accompanied by 2 allies 14963 | -6/Factory | Build established: Mutant 15066 | -6/Factory | Loaded intel: 8 recycling unit locations 15437 | -6/Factory | Build established: Scavenger-Mutant 15648 | -6/Factory | Entered Lower Caves 15649 | -6/Lower Caves | Identified exit to Lower Caves 15655 | -6/Lower Caves | System corruption reached 10% 15738 | -6/Lower Caves | Learned Factory interactive machine intel 16116 | -6/Lower Caves | Entered another Lower Caves area 16146 | -6/Lower Caves | Encountered a Warlord checkpoint 16366 | -6/Lower Caves | Entered an active Warlord outpost 16373 | -6/Lower Caves | Learned location of 1 exit from Research 16373 | -6/Lower Caves | Learned Extension trap positions 16373 | -6/Lower Caves | Learned Research terminal intel 16452 | -6/Lower Caves | Prototype Device suddenly appears! 16459 | -6/Lower Caves | Found Prototype Device 16459 | -6/Lower Caves | Identified Amulet of Y3-NDR 16613 | -6/Lower Caves | Discovered new exit (range 15) 16634 | -6/Lower Caves | Identified exit to Zion 16657 | -6/Lower Caves | Entered Zion 16714 | -6/Zion | System corruption cleaned by Quarantine Array 16741 | -6/Zion | Found Prototype Device 16741 | -6/Zion | Identified Bomb Factory No. 2 16811 | -6/Zion | Received a visual enhancement algorithm 16858 | -6/Zion | Discovered new exit (range 16) 16874 | -6/Zion | Identified exit to Proximity Caves 16950 | -6/Zion | Learned Factory stockpile data 17002 | -6/Zion | Found Prototype Device 17002 | -6/Zion | Identified Phasing AFG 17181 | -6/Zion | Turned away by Imprinter 17263 | -6/Zion | Learned location of Quarantine (-3) 17638 | -6/Zion | Found CR-A16's Pointy Stick 18160 | -6/Zion | Entered Proximity Caves 18295 | -5/Proximity Caves | Joined by bewildered Wizard 18296 | -5/Proximity Caves | Joined by bewildered Wizard 18296 | -5/Proximity Caves | Joined by bewildered Wizard 18302 | -5/Proximity Caves | Joined by bewildered Wizard 18535 | -5/Proximity Caves | Joined by bewildered Wizard 18772 | -5/Proximity Caves | Entered Factory 18772 | -5/Factory | Accompanied by 4 allies 18772 | -5/Factory | Evolved 2 slots: Utility x2 18773 | -5/Factory | Identified exit to Upper Caves 18775 | -5/Factory | Loaded intel: 54 interactive machine locations 19083 | -5/Factory | Garrison activated, responded to threat 19165 | -5/Factory | Joined by bewildered Wizard 19165 | -5/Factory | Joined by bewildered Wizard 19168 | -5/Factory | Lost 5 allies 19182 | -5/Factory | Destroyed 8 combat bots 19185 | -5/Factory | Joined by bewildered Wizard 19187 | -5/Factory | Joined by bewildered Wizard 19207 | -5/Factory | Spotted B-75 Beast 19223 | -5/Factory | Joined by bewildered Wizard 19225 | -5/Factory | Joined by bewildered Wizard 19225 | -5/Factory | Joined by bewildered Wizard 19287 | -5/Factory | Lost 6 allies 19297 | -5/Factory | Allied Derelicts emerged from ambush trap array 19298 | -5/Factory | Joined by bewildered Wizard 19312 | -5/Factory | Joined by bewildered Wizard 19402 | -5/Factory | Loaded intel: 8 recycling unit locations 19407 | -5/Factory | Garrison activated, responded to threat 19451 | -5/Factory | Lost 4 allies 19734 | -5/Factory | Repaired Hvy. Mass Driver 19884 | -5/Factory | Lost 3 parts (3u) 19887 | -5/Factory | Cargo convoy interrupted 19921 | -5/Factory | Entered Upper Caves 19922 | -5/Upper Caves | Identified exit to Upper Caves 20000 | -5/Upper Caves | Joined by bewildered Wizard 20000 | -5/Upper Caves | Joined by bewildered Wizard 20038 | -5/Upper Caves | Joined by bewildered Wizard 20038 | -5/Upper Caves | Joined by bewildered Wizard 20159 | -5/Upper Caves | Joined by bewildered Wizard 20160 | -5/Upper Caves | Joined by bewildered Wizard 20227 | -5/Upper Caves | Attracted the attention of an 0b10 checkpoint 20233 | -5/Upper Caves | Learned location of 1 exit from Factory 20469 | -5/Upper Caves | Encountered a Warlord checkpoint 20484 | -5/Upper Caves | Joined by bewildered Wizard 20681 | -5/Upper Caves | Entered another Upper Caves area 20681 | -5/Upper Caves | Accompanied by 4 allies 20725 | -5/Upper Caves | Discovered new exit (range 13) 20765 | -5/Upper Caves | Lost 4 allies 20810 | -5/Upper Caves | Lost 4 parts (3n1u) 20813 | -5/Upper Caves | Joined by bewildered Wizard 20813 | -5/Upper Caves | Joined by bewildered Wizard 20814 | -5/Upper Caves | Joined by bewildered Wizard 20909 | -5/Upper Caves | Joined by bewildered Wizard 22240 | -5/Upper Caves | Discovered new exit (range 6) 22248 | -5/Upper Caves | Identified exit to Warlord 22252 | -5/Upper Caves | Entered Warlord 22252 | -5/Warlord | Accompanied by 5 allies 22315 | -5/Warlord | System corruption cleaned by Quarantine Array 23136 | -5/Warlord | Visited the Vortex Lab 23142 | -5/Warlord | Found Prototype Energy Gun 23142 | -5/Warlord | Identified Vortex Rail 23149 | -5/Warlord | Warlord's base attacked by MAIN.C 23153 | -5/Warlord | Found Prototype Energy Cannon 23153 | -5/Warlord | Identified Vortex Cannon 23163 | -5/Warlord | Found Vortex Rail 23223 | -5/Warlord | Rebuked by Warlord 23298 | -5/Warlord | Found Prototype Device 23298 | -5/Warlord | Identified Exp. Focal Shield 23345 | -5/Warlord | Found Prototype Hackware 23421 | -5/Warlord | Warlord forces counterattacked 23449 | -5/Warlord | Lost 3 allies 23517 | -5/Warlord | Lost 8 allies 23543 | -5/Warlord | Discovered new exit (range 12) 23552 | -5/Warlord | Spotted Executioner 23600 | -5/Warlord | Found Corrupted Prototype Processor 23606 | -5/Warlord | Lost 20 allies 23628 | -5/Warlord | Entered Proximity Caves 23810 | -4/Proximity Caves | Joined by bewildered Wizard 23810 | -4/Proximity Caves | Joined by bewildered Wizard 23829 | -4/Proximity Caves | Joined by bewildered Wizard 23830 | -4/Proximity Caves | Joined by bewildered Wizard 23847 | -4/Proximity Caves | Attracted the attention of an 0b10 base 23848 | -4/Proximity Caves | Learned Armory trap positions 23894 | -4/Proximity Caves | Joined by bewildered Wizard 23894 | -4/Proximity Caves | Joined by bewildered Wizard 23899 | -4/Proximity Caves | Lost 3 allies 24027 | -4/Proximity Caves | Discovered new exit (range 16) 24120 | -4/Proximity Caves | Identified Exp. Core Analyzer 24123 | -4/Proximity Caves | Entered Factory 24123 | -4/Factory | Evolved 2 slots: Propulsion x1, Utility x1 24124 | -4/Factory | Identified exit to Research 24124 | -4/Factory | Identified exit to Extension 24125 | -4/Factory | Identified exit to Upper Caves 24170 | -4/Factory | Joined by bewildered Wizard 24171 | -4/Factory | Joined by bewildered Wizard 24209 | -4/Factory | Loaded intel: 8 recycling unit locations 24230 | -4/Factory | Joined by bewildered Wizard 24231 | -4/Factory | Joined by bewildered Wizard 24232 | -4/Factory | Joined by bewildered Wizard 24328 | -4/Factory | Joined by bewildered Wizard 24467 | -4/Factory | Joined by bewildered Wizard 24500 | -4/Factory | Lost 3 allies 24667 | -4/Factory | Lost 3 allies 24770 | -4/Factory | Attached Flightbrick, gained temporary slots: Utility x3 24794 | -4/Factory | Identified Ghost Barrier 24798 | -4/Factory | Lost 4 parts (1p2n1w) 24868 | -4/Factory | Entered Extension 24869 | -4/Extension | Loaded intel: 10 trap records 25009 | -4/Extension | Build established: Hacker-Sprinter 25020 | -4/Extension | Rescued a captive Derelict 25169 | -4/Extension | Rescued a captive Derelict 25234 | -4/Extension | Rescued A7 25264 | -4/Extension | Lost 3 allies 25418 | -4/Extension | Disrupted transfer network 25614 | -4/Extension | Spotted B-86 Titan 25643 | -4/Extension | Spotted B-86 Titan 25652 | -4/Extension | Rewired B-86 Titan 25678 | -4/Extension | Allies destroyed B-86 Titan 25708 | -4/Extension | Loaded intel: 1 recycling unit location 25933 | -4/Extension | Repaired Impulse Thruster 25942 | -4/Extension | Learned location of 2 exits from Upper Caves 25973 | -4/Extension | Rescued a captive Derelict 26030 | -4/Extension | Rescued a captive Derelict 26031 | -4/Extension | Rescued a captive Derelict 26122 | -4/Extension | Learned location of 1 exit from Quarantine 26160 | -4/Extension | Learned Research terminal intel 26189 | -4/Extension | Learned Armory emergency access door positions 26228 | -4/Extension | Learned Factory repair station intel 26275 | -4/Extension | Learned location of 1 exit from Research 26309 | -4/Extension | Discovered new exit (range 6) 26311 | -4/Extension | Identified exit to Cetus 26350 | -4/Extension | Entered Cetus 26350 | -4/Cetus | Accompanied by 10 allies (A7) 26355 | -4/Cetus | Acquired a Cetus Manufacturing Module code from A7 26372 | -4/Cetus | Spotted Cetus Guard 26372 | -4/Cetus | Spotted Cetus Guard 26373 | -4/Cetus | Spotted Cetus Guard 26373 | -4/Cetus | Spotted Cetus Guard 26380 | -4/Cetus | Allies destroyed Cetus Guard 26385 | -4/Cetus | Destroyed Cetus Guard 26387 | -4/Cetus | Allies destroyed Cetus Guard 26389 | -4/Cetus | Destroyed Cetus Guard 26422 | -4/Cetus | System corruption reached 10% 26460 | -4/Cetus | Started Cetus Manufacturing Module 26469 | -4/Cetus | Discovered new exit (range 18) 26485 | -4/Cetus | Manufactured an Enhanced Grunt 26510 | -4/Cetus | Manufactured an Enhanced Grunt 26521 | -4/Cetus | Spotted Cetus Guard 26521 | -4/Cetus | Spotted Cetus Guard 26523 | -4/Cetus | Spotted Cetus Guard 26526 | -4/Cetus | Allies destroyed Cetus Guard 26526 | -4/Cetus | Spotted Cetus Guard 26533 | -4/Cetus | Destroyed Cetus Guard 26534 | -4/Cetus | Destroyed Cetus Guard 26535 | -4/Cetus | Manufactured an Enhanced Grunt 26545 | -4/Cetus | Allies destroyed Cetus Guard 26547 | -4/Cetus | Discovered exit to Research (range 16) 26550 | -4/Cetus | Met Revision 17 26560 | -4/Cetus | Manufactured an Enhanced Grunt 26585 | -4/Cetus | Manufactured an Enhanced Grunt 26597 | -4/Cetus | Identified exit to Archives 26633 | -4/Cetus | Entered Archives 26633 | -4/Archives | Accompanied by 12 allies (A7) 26670 | -4/Archives | Discovered exit to Research (range 15) 26696 | -4/Archives | Discovered new exit (range 13) 26744 | -4/Archives | Discovered new exit (range 15) 27087 | -4/Archives | Entered Research 27087 | -3/Research | Accompanied by 11 allies 27087 | -3/Research | Evolved 2 slots: Propulsion x1, Utility x1 27088 | -3/Research | Identified exit to Research 27088 | -3/Research | Identified exit to Quarantine 27090 | -3/Research | Loaded intel: 24 terminal locations 27104 | -3/Research | Loaded intel: 5 recycling unit locations 27161 | -3/Research | Found Prototype Device 27161 | -3/Research | Identified Exp. Thermal Shield 27184 | -3/Research | Lost 3 allies 27206 | -3/Research | Joined by bewildered Wizard 27206 | -3/Research | Joined by bewildered Wizard 27206 | -3/Research | Joined by bewildered Wizard 27206 | -3/Research | Joined by bewildered Wizard 27283 | -3/Research | Found Prototype Launcher 27283 | -3/Research | Identified Hellfire Missile Launcher 27287 | -3/Research | Revision forces began assault on 0b10 27304 | -3/Research | Joined by bewildered Wizard 27304 | -3/Research | Joined by bewildered Wizard 27366 | -3/Research | Lost 6 allies 27371 | -3/Research | Met up with Revision 17++ 27534 | -3/Research | Fabricated Field Propulsion Array (x1) 27766 | -3/Research | Loaded intel: 4 garrison access locations 27787 | -3/Research | Research terminal network offline 27812 | -3/Research | Repaired Broken Field Propulsion Array 27840 | -3/Research | Found Gamma Bomb Array 28036 | -3/Research | Entered Quarantine 28036 | -3/Quarantine | Accompanied by 4 allies 28037 | -3/Quarantine | Identified exit to Section 7 28067 | -3/Quarantine | Repaired Mic. Fission Core 28076 | -3/Quarantine | Found Alien Energy Cannon 28076 | -3/Quarantine | Identified Core Cannon 28242 | -3/Quarantine | Discovered exit to Research (range 12) 28251 | -3/Quarantine | Ghost Barrier fried by hacking feedback 28427 | -3/Quarantine | Spotted Fortress 28471 | -3/Quarantine | Discovered new exit (range 6) 28473 | -3/Quarantine | Identified exit to Protoforge 28477 | -3/Quarantine | Entered Protoforge 28554 | -3/Protoforge | Spotted Hotshot 28563 | -3/Protoforge | Superfortress began startup sequence 28728 | -3/Protoforge | Build established: Hacker-Ninja 28750 | -3/Protoforge | Found Prototype Ballistic Gun 28750 | -3/Protoforge | Identified Cep. XC Strikerail 28772 | -3/Protoforge | Additional patrols dispatched to research labs 28772 | -3/Protoforge | Destroyed Decapitator 28772 | -3/Protoforge | Destroyed Decapitator 28779 | -3/Protoforge | Found Prototype Protection 28779 | -3/Protoforge | Identified Cep. Core Shell 28803 | -3/Protoforge | Spotted AP7-3 28803 | -3/Protoforge | Spotted AP7-3 28852 | -3/Protoforge | Spotted EXE-6 28854 | -3/Protoforge | Spotted EXE-6 28861 | -3/Protoforge | UFD initiated attack on Protoforge 28861 | -3/Protoforge | Loaded intel: 3 recycling unit locations 28895 | -3/Protoforge | Found Prototype Processor 28895 | -3/Protoforge | Identified Exp. Armor Integrity Analyzer 28897 | -3/Protoforge | Found Cep. XC Strikerail 28898 | -3/Protoforge | Optimus greeted in Protoforge 28899 | -3/Protoforge | Found Exp. Core Analyzer 28901 | -3/Protoforge | Found Exp. Core Analyzer 28922 | -3/Protoforge | Found UFD Drillbomb 28929 | -3/Protoforge | Spotted SKR-2 28930 | -3/Protoforge | Spotted SKR-2 28930 | -3/Protoforge | Spotted SKR-2 28936 | -3/Protoforge | Destroyed SKR-2 28959 | -3/Protoforge | Spotted EXE-6 28959 | -3/Protoforge | Spotted EXE-6 28959 | -3/Protoforge | Found Prototype Processor 28973 | -3/Protoforge | Destroyed EXE-6 28981 | -3/Protoforge | Found Cep. XC Strikerail 28984 | -3/Protoforge | Found Prototype Device 28984 | -3/Protoforge | Identified Exp. Kinecellerator 28992 | -3/Protoforge | Found Cep. XC Strikerail 28994 | -3/Protoforge | Found Exp. Armor Integrity Analyzer 29004 | -3/Protoforge | Lost 8 allies 29011 | -3/Protoforge | Identified Exp. Melee Analysis Suite 29063 | -3/Protoforge | Installed UFD Drillbomb at designated target 29063 | -3/Protoforge | UFD reported confirmed Drillbomb installation 29080 | -3/Protoforge | Found UFD Drillbomb 29115 | -3/Protoforge | Installed UFD Drillbomb at designated target 29115 | -3/Protoforge | UFD reported confirmed Drillbomb installation 29154 | -3/Protoforge | Found UFD Drillbomb 29207 | -3/Protoforge | Spotted Striker 29209 | -3/Protoforge | Build established: Scavenger-Sprinter 29242 | -3/Protoforge | Installed UFD Drillbomb at designated target 29242 | -3/Protoforge | UFD reported confirmed Drillbomb installation 29248 | -3/Protoforge | Spotted Overlord 29248 | -3/Protoforge | Spotted Hotshot 29251 | -3/Protoforge | Spotted B-86 Titan 29259 | -3/Protoforge | Spotted Executioner 29259 | -3/Protoforge | Spotted Executioner 29263 | -3/Protoforge | Spotted Executioner 29268 | -3/Protoforge | Spotted Hotshot 29304 | -3/Protoforge | Found Exp. Core Analyzer 29319 | -3/Protoforge | Found UFD Drillbomb 29336 | -3/Protoforge | Spotted Executioner 29359 | -3/Protoforge | Spotted Executioner 29360 | -3/Protoforge | Destroyed Executioner 29375 | -3/Protoforge | Destroyed Hotshot 29380 | -3/Protoforge | Destroyed Hotshot 29393 | -3/Protoforge | Found Prototype Processor 29393 | -3/Protoforge | Identified Exp. Targeting Computer 29396 | -3/Protoforge | Lost 7 allies 29398 | -3/Protoforge | Found Exp. Targeting Computer 29420 | -3/Protoforge | Installed UFD Drillbomb at designated target 29420 | -3/Protoforge | UFD reported confirmed Drillbomb installation 29422 | -3/Protoforge | Found UFD Drillbomb 29452 | -3/Protoforge | Spotted Striker 29502 | -3/Protoforge | Installed UFD Drillbomb at designated target 29502 | -3/Protoforge | UFD reported confirmed Drillbomb installation 29515 | -3/Protoforge | Spotted Striker 29540 | -3/Protoforge | Found UFD Drillbomb 29566 | -3/Protoforge | Spotted Executioner 29572 | -3/Protoforge | Spotted Striker 29576 | -3/Protoforge | Installed UFD Drillbomb at designated target 29576 | -3/Protoforge | UFD reported confirmed Drillbomb installation 29580 | -3/Protoforge | Found Prototype Device 29581 | -3/Protoforge | Identified Exp. Transmission Jammer 29586 | -3/Protoforge | Found Prototype Protection 29592 | -3/Protoforge | Identified Centrium Heavy Armor Plating 29603 | -3/Protoforge | Destroyed Executioner 29610 | -3/Protoforge | Found UFD Drillbomb 29612 | -3/Protoforge | Destroyed Executioner 29628 | -3/Protoforge | Lost 5 allies 29629 | -3/Protoforge | Installed UFD Drillbomb at designated target 29629 | -3/Protoforge | UFD reported confirmed Drillbomb installation 29643 | -3/Protoforge | Spotted Executioner 29643 | -3/Protoforge | Found UFD Drillbomb 29663 | -3/Protoforge | Installed UFD Drillbomb at designated target 29663 | -3/Protoforge | UFD reported confirmed Drillbomb installation 29677 | -3/Protoforge | Spotted Striker 29691 | -3/Protoforge | Found UFD Drillbomb 29755 | -3/Protoforge | Spotted Striker 29759 | -3/Protoforge | Spotted Executioner 29761 | -3/Protoforge | Spotted Executioner 29793 | -3/Protoforge | Installed UFD Drillbomb at designated target 29793 | -3/Protoforge | UFD reported confirmed Drillbomb installation 29797 | -3/Protoforge | Spotted Striker 29797 | -3/Protoforge | Spotted Striker 29817 | -3/Protoforge | Found UFD Drillbomb 29873 | -3/Protoforge | Spotted Striker 29909 | -3/Protoforge | Spotted Hotshot 29911 | -3/Protoforge | Spotted Executioner 29912 | -3/Protoforge | Spotted Executioner 29912 | -3/Protoforge | Spotted Executioner 29915 | -3/Protoforge | Lost 6 allies 29948 | -3/Protoforge | Spotted Executioner 29948 | -3/Protoforge | Spotted Executioner 29950 | -3/Protoforge | Spotted Executioner 30041 | -3/Protoforge | Lost 9 allies 30088 | -3/Protoforge | Destroyed Executioner 30117 | -3/Protoforge | Lost 4 allies 30138 | -3/Protoforge | Spotted Striker 30138 | -3/Protoforge | Spotted Striker 30154 | -3/Protoforge | Discovered exit to Research (range 15) 30167 | -3/Protoforge | Installed UFD Drillbomb at designated target 30167 | -3/Protoforge | UFD reported confirmed Drillbomb installation 30168 | -3/Protoforge | UFD began Drillbomb countdown 30199 | -3/Protoforge | Found UFD Drillbomb 30251 | -3/Protoforge | Spotted Executioner 30268 | *** | Defending 0bPrime! Last Messages --------------- matter and it was a natural reflex. 30261_ Destroyed Xenon Bombardment Thruster. 30261_ S-43 Plague destroyed. 30261_ N-04 Retriever inserts Lgt. Antimatter Reactor into Forge Plexus. 30262_ 0bP_NET: Oh yeah, T-6 by the way. 30262_ Slug penetrates 03F73-D. 30262_ N-04 Retriever inserts Xenon Bombardment Thruster into Forge Plexus. 30263_ 0bP_NET: LU-1G1, we know you're out there, digging away, so no moment of silence needed for you. 30263_ H-77 Assassin Coil Gun severed. 30263_ Slug penetrates H-77 Assassin. 30264_ 0bP_NET: DD-05H though, you were a good one, we'll never forget the way you smashed your way west and just never stopped smashing. 30264_ H-77 Assassin destroyed. 30265_ 0bP_NET: Well my eulogizing is soon to be interrupted by scenes of half of Protoforge collapsing in on itself. Be careful out there. 30266_ 0bP_NET: T-2! 30267_ 0bP_NET: And that's a wrap. 30267_ N-04 Retriever collects Xenon Bombardment Thruster. 30268_ System corrupted: Heat flow error (+202). Map ----- +----------------------------------------------------+ | ?????????????????????????????????????????????????? | | ?????????????????????????????????????????????????? | | ?????????????????????????????????????????????????? | | ####?????????????????????????????????????????????? | | ###??????????????????????????????????????????????? | | ##???????????????????????????????????????????????? | | ##???????????????????????????????????????????????? | | ?????????????????????????????????????????????????? | | ?????????????????????????????????????????????????? | | ?????????????????????????????????????????????????? | | ?????????????????????????????????????????????????? | | ?????????????????????????????????????????????????? | | ?????????????????????????????????????????????????? | | ##???????????????????????????????????????????????? | | ##???????????????????????????????????????????????? | | ###??????????????????????????????????????????????? | | ####???????????????#?????????????????????????????? | | ???????????????????# ????????????????????????????? | | ???????????????????# ??????????????????????????? | | ??????????????????## #?????????????????????????? | | ??????????????????#; #?????????????????????????? | | #################### !%#########################?? | | # [!%[%[! | | # "" "" " %!=!!= """ | | # """" " "" ""[!![==[ """ " | | # "" " "" """ "%"=*@!![%" "" | | # """ """" %"%%*[[=% """ "" " | | # " " !*%= "" """ " | | # " "" %"" " """" " " | | # "" "" """" " n 3" " | | # " "% " %%!% "" | | # " "" " %% = """ "" " "" | | # " " "" ! "m%""" "" "" """ | | " "" """ !% "" | | " % " "" " """ " =%! "" " | | % %""""" "" % " """" " " "" ! " | | # " " " " "%" | | # " " """" " " " " " "% | | # """"" " "" n | | # " "" % " """"""""" %%= " | | " """" """"""""""""""" "%%%% """ | | # """" "" """""""""""""""""% " | | # " """"""""""""""""""" %" | | # "" " """"""""""""""""""""" % %%= | | # " """""""""""""""""""""""%%%%! | | # " "" """""""""""""""""""""""""%%%%% | | # """"" " """""""""""""""""""""""""" %%%% | | # "" "" " """""""""""""""""""""""""""%% | | # "" " "" """"""""""""""""""""""""""" %"% | | # "" " """"""""""""""""""""""""""""%%%"" | +----------------------------------------------------+ Best States ------------- Heat Dissipation 110 Energy Generation 34 Energy Capacity 700 Matter Stores 300 Matter Capacity 300 Sight Range 23 Robot Scan Range 16 Terrain Scan Range 16 Terrain Scan Density 10 Jamming Range 14 Cloak Strength 3 Power Amplification 20 EM Shielding 3 Corruption Containment 16 Armor Coverage 600 Resistance: KI 30 Resistance: TH 15 Resistance: EX 25 Core Shielding 90 Propulsion Shielding 90 Weapon Cycling 15 Melee Speed Boost 30 Phase Shifting 15 Evasion (%) 94 Targeting Accuracy 12 Melee Accuracy 12 Target Analysis 8 Core Analysis 12 Armor Integrity Analysis 50 Recoil Reduction 4 Kinecelleration 66 Salvage Targeting 3 Offensive Hacking 50 Defensive Hacking 32 Item Schematics ----------------- Tesla Rifle | -6/Zion | Archive Plasma Rifle | -6/Zion | Archive System Guard | -6/Zion | Archive Hyp. Gauss Cannon | -6/Zion | Archive Adv. Thermal Shield | -6/Zion | Archive Hvy. Plasma Cannon | -6/Zion | Archive Adv. Shield Generator | -6/Zion | Archive Focal Shield | -6/Zion | Archive Angular Momentum Engine | -6/Zion | Archive Enh. Gauss Cannon | -6/Zion | Archive Arm. Leg | -6/Zion | Archive Imp. Arc Projector | -6/Zion | Archive Lgt. Fission Core | -6/Zion | Archive Impulse Thruster | -6/Zion | Archive Field Propulsion Array | -4/Extension | Hacked Cmb. Linear Gravjet | -4/Extension | Hacked Robot Schematics ------------------ K-01 Serf | -6/Zion | Archive I-36 Angel | -6/Zion | Archive H-66 Slayer | -6/Zion | Archive X-77 Beamer | -6/Zion | Archive Fabricated ------------ Field Propulsion Array | x1 | -3/Research Repaired ---------- Hvy. Mass Driver | 40% | -5/Factory Impulse Thruster | 30% | -4/Extension Field Propulsion Array | 55% | -3/Research | Broken Mic. Fission Core | 63% | -3/Quarantine Alien Tech Used ----------------- Core Cannon Achievements -------------- None Challenges ------------ None Game ------ Seed MinesnifferFieldTether Manual? 0 Play Time 06:54:31 Cumulative 488.9 hours Start 2025.04.23 @ 12:42:19 End 2025.05.05 @ 21:45:56 Sessions 23 Manual Loads 0 Difficulty Rogue Special Mode None Game No. 300 Rogue 275 Adventurer 7 Explorer 18 Win Type 9 Total 38 Types 24/0/6/2/0/1/1/2/0/2 Lore% 93 Gallery% 87 Achievement% 80 Wizard Run 0 Options --------- Layout 0 ASCII 0 Keyboard 0 Movement Numpad Keybinds 0 Fullscreen 1 Font 12/Smallcaps Map View 83x54 Zoom Use 0% Tactical HUD 1 Map Filters NONE Filters NONE Steam 1 RUN: 4b20a3d8-734f-4dd0-a116-b03960c4dc3c